bitfinex-derivatives/quotes_ETHF0:USTF0_20240831
["timestamp","ask_amount","ask_price","bid_price","bid_amount"]
[1725075315563,0.27701,2527.1,2526.9,0.36863319]
[1725075315966,4.53675467,2527.0,2526.9,0.36863319]
[1725075317670,3.2078,2527.0,2526.9,0.36863319]
[1725075317860,4.49897765,2527.1,2526.9,0.36863319]
[1725075318056,7.52076143,2527.0,2526.9,0.36863319]
[1725075318261,3.2078,2527.0,2526.9,0.36863319]
[1725075318665,7.52076143,2527.0,2526.9,0.36863319]
[1725075323170,4.31296143,2527.0,2526.9,0.36863319]
[1725075323565,4.31296143,2527.0,2526.9,0.64566319]
[1725075324166,4.31296143,2527.0,2526.9,5.18532457]
[1725075324469,0.00593319,2527.4,2527.1,0.277]
[1725075324671,0.00593319,2527.4,2527.2,1.0994]
[1725075324966,0.28290319,2527.4,2527.2,1.0994]
[1725075325565,0.00593319,2527.4,2527.2,1.0994]
[1725075328875,0.27693,2527.9,2527.4,0.27697]
[1725075329066,0.27693,2527.8,2527.4,0.27697]
[1725075329269,0.27693,2527.8,2527.5,0.58183481]
[1725075329474,9.05568163,2528.0,2527.4,4.23297]
[1725075329475,1.27693,2527.9,2527.4,4.23297]
[1725075329677,1.27693,2527.9,2527.5,0.58156105]
[1725075329878,1.27693,2527.9,2527.4,0.27697]
[1725075330179,1.27693,2527.9,2527.5,0.58155677]
[1725075330370,1.27693,2527.9,2527.4,0.27697]
[1725075330676,1.27693,2527.9,2527.5,0.58145804]
[1725075330875,1.27693,2527.9,2527.4,0.27697]
[1725075331083,1.27693,2527.9,2527.5,0.58143479]
[1725075331275,1.27693,2527.9,2527.4,0.27697]
[1725075331887,0.27693,2527.8,2527.4,0.27697]
[1725075332287,0.27693,2527.8,2527.4,4.23297]
[1725075333078,0.27693,2527.8,2527.5,0.3675]
[1725075333490,1.0,2527.9,2527.5,0.3675]
[1725075333691,0.27693,2527.8,2527.5,0.3675]
[1725075338895,1.27693,2527.9,2527.5,0.3675]
[1725075340394,0.27693,2527.8,2527.5,0.3675]
[1725075340592,0.27696,2527.5,2527.3,1.03378624]
[1725075340797,1.1408,2527.4,2527.2,0.3869]
[1725075341996,1.41777,2527.4,2527.2,0.3869]
[1725075342595,4.62557,2527.4,2527.2,0.3869]
[1725075342893,1.41777,2527.4,2527.2,0.3869]
[1725075343296,1.1408,2527.4,2527.2,0.3869]
[1725075343801,4.55037989,2527.3,2527.1,4.158]
[1725075344098,4.55037989,2527.3,2527.1,4.5457]
[1725075345400,4.55037989,2527.3,2527.1,0.3877]
[1725075348602,4.55037989,2527.3,2527.2,0.58175458]
[1725075349105,4.55037989,2527.3,2527.1,0.3877]
[1725075349406,4.55037989,2527.3,2527.2,0.58174588]
[1725075349901,4.55037989,2527.3,2527.2,0.58175316]
[1725075350297,4.55037989,2527.3,2527.1,0.3877]
[1725075359605,4.82736989,2527.3,2527.1,0.3877]
[1725075359911,4.82736989,2527.3,2526.9,1.03971943]
[1725075359912,0.27701,2527.1,2526.9,1.03971943]
[1725075360124,1.39622,2527.0,2526.9,0.00593319]
[1725075360313,9.75637163,2527.0,2526.9,0.00593319]
[1725075360610,13.71397163,2527.0,2526.9,0.00593319]
[1725075360811,14.40652163,2527.0,2526.9,0.00593319]
[1725075363112,13.71397163,2527.0,2526.9,0.00593319]
[1725075363312,9.47935163,2527.0,2526.9,0.00593319]
[1725075363505,4.9462,2527.0,2526.9,0.00593319]
[1725075364508,0.7384,2527.0,2526.9,0.00593319]
[1725075370714,3.2078,2527.3,2527.1,0.277]
[1725075370914,0.27698,2527.4,2527.2,0.3705]
[1725075372212,2.02207,2527.5,2527.2,0.3705]
[1725075373921,1.0,2527.3,2527.2,0.3705]
[1725075375027,1.0,2527.3,2527.0,0.27701]
[1725075375215,0.3727,2527.2,2527.0,0.27701]
[1725075375416,0.3531,2527.1,2527.0,0.27701]
[1725075375621,0.736,2527.1,2527.0,4.23381]
[1725075376125,0.736,2527.1,2526.9,0.38963319]
[1725075377921,1.01301,2527.1,2526.9,0.00593319]
[1725075378925,0.736,2527.1,2526.9,0.00593319]
[1725075379121,0.736,2527.1,2526.9,0.35863319]
[1725075379927,1.01301,2527.1,2526.9,0.35863319]
[1725075380319,0.736,2527.1,2526.9,0.35863319]
[1725075380920,1.01301,2527.1,2526.9,0.35863319]
[1725075382620,0.736,2527.1,2526.9,0.63566319]
[1725075383220,0.736,2527.1,2527.0,0.3858]
[1725075383730,0.736,2527.1,2527.0,0.66282]
[1725075384329,0.736,2527.1,2527.0,1.24476242]
[1725075384721,0.736,2527.1,2527.0,0.66282]
[1725075385028,0.736,2527.1,2527.0,0.3858]
[1725075385226,0.736,2527.1,2527.0,0.66282]
[1725075385726,0.736,2527.1,2527.0,1.24479138]
[1725075386227,0.736,2527.1,2527.0,0.96777138]
[1725075388535,0.736,2527.1,2527.0,0.3858]
[1725075388728,0.736,2527.1,2527.0,0.96789218]
[1725075390033,0.736,2527.1,2527.0,0.3858]
[1725075391026,0.27702,2527.0,2526.9,0.00593319]
[1725075391538,4.77991006,2527.0,2526.9,0.00593319]
[1725075401841,5.77991006,2527.0,2526.9,0.00593319]
[1725075404341,10.43006006,2527.0,2526.9,0.00593319]
[1725075404847,0.27709,2526.4,2526.1,12.66658624]
[1725075405052,0.74,2526.3,2526.2,0.9393174]
[1725075405544,0.74,2526.3,2526.2,0.93932498]
[1725075406443,2.01709,2526.3,2526.2,0.93932498]
[1725075407033,2.01709,2526.3,2526.2,0.3564]
[1725075407536,1.74,2526.3,2526.2,0.3564]
[1725075408039,2.01709,2526.3,2526.2,0.3564]
[1725075413641,2.01709,2526.3,2526.0,0.00593319]
[1725075413837,1.0,2526.1,2526.0,0.00593319]
[1725075414245,5.29475457,2526.1,2526.0,0.00593319]
[1725075418754,0.27711,2526.2,2526.0,0.00593319]
[1725075421549,0.37083319,2526.5,2526.0,3.96433319]
[1725075421756,0.00593319,2526.5,2526.3,0.27709]
[1725075421950,0.28300319,2526.5,2526.4,1.1459]
[1725075422152,0.28300319,2526.5,2526.4,0.7657]
[1725075422348,0.28300319,2526.5,2526.4,0.3843]
[1725075422748,0.00593319,2526.5,2526.4,0.3843]
[1725075428047,0.00593319,2526.5,2526.4,4.61978]
[1725075432266,0.00593319,2526.5,2526.4,5.20259577]
[1725075432767,0.00593319,2526.5,2526.4,4.61978]
[1725075433264,0.00593319,2526.5,2526.4,5.20260207]
[1725075434266,0.00593319,2526.5,2526.4,4.61978]
[1725075434467,0.00593319,2526.5,2526.4,5.20261378]
[1725075437454,0.00593319,2526.5,2526.4,4.61978]
[1725075437661,0.00593319,2526.5,2526.4,5.20271529]
[1725075441061,0.00593319,2526.5,2526.4,4.61978]
[1725075441260,0.00593319,2526.5,2526.4,5.20271688]
[1725075444179,0.00593319,2526.5,2526.4,4.61978]
[1725075444564,0.00593319,2526.5,2526.4,5.20261319]
[1725075447577,0.00593319,2526.5,2526.4,4.61978]
[1725075447770,0.00593319,2526.5,2526.4,5.20249899]
[1725075450975,0.00593319,2526.5,2526.4,4.61978]
[1725075451178,0.00593319,2526.5,2526.4,5.20251166]
[1725075453274,0.00593319,2526.5,2526.4,1.24411166]
[1725075454384,0.00593319,2526.5,2526.4,2.66844548]
[1725075454580,0.3796,2526.8,2526.7,0.27705]
[1725075454779,1.0,2526.9,2526.7,0.85964393]
[1725075455075,1.0,2526.9,2526.7,0.27704]
[1725075455277,1.0,2526.9,2526.8,0.3562]
[1725075457076,1.0,2526.9,2526.7,0.27704]
[1725075458472,1.0,2526.9,2526.6,0.66615]
[1725075458678,1.0,2526.9,2526.7,0.58235332]
[1725075458874,1.0,2526.9,2526.6,0.66615]
[1725075459186,1.0,2526.9,2526.7,0.5823581]
[1725075459385,1.0,2526.9,2526.6,0.66615]
[1725075459580,1.0,2526.9,2526.7,0.58233851]
[1725075459786,1.0,2526.9,2526.6,0.66615]
[1725075459987,1.0,2526.9,2526.7,0.58233767]
[1725075460187,1.0,2526.9,2526.6,0.66615]
[1725075460389,1.0,2526.9,2526.7,0.58230597]
[1725075460588,1.0,2526.9,2526.6,0.66615]
[1725075461089,1.0,2526.9,2526.7,0.58230586]
[1725075461286,1.0,2526.9,2526.6,0.66615]
[1725075461487,1.0,2526.9,2526.7,0.58232524]
[1725075461488,1.27703,2526.9,2526.7,0.58232524]
[1725075461688,1.0,2526.9,2526.6,0.27705]
[1725075461884,1.0,2526.9,2526.7,0.58232059]
[1725075462187,1.27703,2526.9,2526.6,0.27705]
[1725075462388,1.27703,2526.9,2526.7,0.58230226]
[1725075462585,1.27703,2526.9,2526.6,0.27705]
[1725075462792,1.27703,2526.9,2526.7,0.58229884]
[1725075462980,1.27703,2526.9,2526.6,0.27705]
[1725075463282,1.27703,2526.9,2526.7,0.58229856]
[1725075463490,1.27703,2526.9,2526.6,0.27705]
[1725075463782,1.27703,2526.9,2526.7,0.58229719]
[1725075463990,1.0,2526.9,2526.4,1.40788624]
[1725075464185,1.1174,2527.0,2526.4,1.03378624]
[1725075464186,1.27705,2526.7,2526.4,1.03378624]
[1725075464485,5.0378021,2526.6,2526.5,0.58232833]
[1725075464689,5.6960621,2526.6,2526.5,0.58232833]
[1725075467484,5.6960621,2526.6,2526.5,0.5824342]
[1725075467788,9.6536621,2526.6,2526.5,0.5824342]
[1725075467994,0.27709,2526.3,2526.1,4.526]
[1725075468295,0.7374,2526.2,2526.0,1.03971943]
[1725075468481,1.0923,2526.2,2526.1,0.58259118]
[1725075470192,2.3694,2526.2,2526.1,0.58259118]
[1725075470894,2.3694,2526.2,2526.0,0.00593319]
[1725075471193,2.3694,2526.2,2526.1,0.58265733]
[1725075471597,2.0923,2526.2,2526.1,0.58265733]
[1725075471987,2.3694,2526.2,2526.1,0.58265733]
[1725075472388,2.0923,2526.2,2526.1,0.58265733]
[1725075474095,2.0923,2526.2,2526.0,0.00593319]
[1725075474295,2.0923,2526.2,2526.1,0.58268596]
[1725075477001,6.0507,2526.2,2526.1,0.58268596]
[1725075477204,10.20635488,2526.2,2526.1,0.58268596]
[1725075479403,10.20635488,2526.2,2526.0,0.00593319]
[1725075479603,6.24795488,2526.2,2526.0,0.00593319]
[1725075481800,5.24795488,2526.2,2526.0,0.00593319]
[1725075482005,0.69261,2526.8,2526.1,0.85979615]
[1725075482006,4.48488,2526.5,2526.1,0.85979615]
[1725075482312,0.27708,2526.4,2526.2,0.58267615]
[1725075482501,0.27708,2526.4,2526.2,0.3705]
[1725075484204,5.19528,2526.5,2526.2,0.3705]
[1725075485112,1.98748,2526.5,2526.2,0.3705]
[1725075485715,1.7104,2526.5,2526.2,0.6476]
[1725075486505,1.98748,2526.5,2526.2,0.3705]
[1725075489115,1.7104,2526.5,2526.3,0.27709]
[1725075490117,1.7104,2526.5,2526.2,0.6476]
[1725075492919,0.3574,2526.5,2526.2,0.6476]
[1725075493126,1.3574,2526.5,2526.2,0.6476]
[1725075493423,4.5652,2526.5,2526.2,0.6476]
[1725075493811,1.3574,2526.5,2526.2,0.6476]
[1725075495319,0.369,2526.4,2526.2,0.6476]
[1725075495719,0.369,2526.4,2526.2,0.3705]
[1725075495920,0.3889,2526.3,2526.2,0.3705]
[1725075496422,0.3889,2526.3,2526.2,0.95292351]
[1725075496626,0.3889,2526.3,2526.2,0.95293362]
[1725075497425,0.3889,2526.3,2526.2,0.95293768]
[1725075499028,0.3889,2526.3,2526.2,0.95293077]
[1725075499926,0.3889,2526.3,2526.2,0.3705]
[1725075500119,0.3889,2526.3,2526.2,0.95295555]
[1725075501130,0.66599,2526.3,2526.2,0.95295555]
[1725075501318,0.66599,2526.3,2526.2,0.95297937]
[1725075501519,0.66599,2526.3,2526.2,0.3705]
[1725075502234,0.3889,2526.3,2526.2,0.3705]
[1725075502424,0.3889,2526.3,2526.2,0.95298362]
[1725075503223,0.3889,2526.3,2526.2,0.3705]
[1725075503429,0.3889,2526.3,2526.2,0.95293683]
[1725075505329,0.27708,2526.4,2526.2,0.95293683]
[1725075505530,0.27708,2526.4,2526.3,0.58243683]
[1725075505925,1.63448,2526.5,2526.3,0.58243683]
[1725075506129,1.0,2526.5,2526.2,0.3705]
[1725075506334,0.3901,2526.6,2526.4,0.27708]
[1725075506523,0.3901,2526.6,2526.5,0.94992194]
[1725075506833,3.5979,2526.6,2526.5,0.3676]
[1725075507345,3.5979,2526.6,2526.5,0.9499492]
[1725075507527,3.5979,2526.6,2526.5,0.94995184]
[1725075508636,0.3901,2526.6,2526.5,0.94995184]
[1725075509131,3.5979,2526.6,2526.5,0.94995184]
[1725075510329,0.3901,2526.6,2526.5,0.94995184]
[1725075510632,3.5979,2526.6,2526.5,0.94995184]
[1725075511532,3.87496,2526.6,2526.5,0.94995184]
[1725075511735,3.87496,2526.6,2526.5,0.58235184]
[1725075512034,12.36959239,2526.6,2526.5,0.58235184]
[1725075513434,0.27708,2526.5,2526.3,0.3769]
[1725075513631,1.3637,2526.4,2526.3,0.3769]
[1725075513823,5.94505663,2526.4,2526.3,0.95937203]
[1725075516438,5.94505663,2526.4,2526.3,0.3769]
[1725075516737,5.94505663,2526.4,2526.3,0.95938325]
[1725075519632,5.94505663,2526.4,2526.3,0.3769]
[1725075519832,4.58135663,2526.4,2526.3,1.23654664]
[1725075520039,1.66717,2526.6,2526.3,1.61384664]
[1725075520338,1.66717,2526.6,2526.4,0.95485664]
[1725075520545,1.66717,2526.6,2526.5,0.58255664]
[1725075521243,2.03007,2526.6,2526.5,0.58255664]
[1725075525141,6.68033,2526.6,2526.5,0.58255664]
[1725075525345,0.2771,2526.3,2526.1,1.40578624]
[1725075525641,5.68522608,2526.2,2526.1,0.372]
[1725075525840,5.68522608,2526.2,2526.1,2.37927874]
[1725075526037,5.68522608,2526.2,2526.1,0.76279436]
[1725075526347,5.68522608,2526.2,2526.1,2.37925276]
[1725075526748,5.68522608,2526.2,2526.1,2.00725276]
[1725075526948,5.68522608,2526.2,2526.1,0.58267216]
[1725075527149,10.33639608,2526.2,2526.1,0.58267216]
[1725075527348,16.33639608,2526.2,2526.1,0.58267216]
[1725075527737,16.33639608,2526.2,2526.0,0.00593319]
[1725075527738,0.27712,2526.1,2526.0,0.00593319]
[1725075528048,10.28634934,2526.1,2526.0,0.00593319]
[1725075528245,16.28634934,2526.1,2526.0,0.00593319]
[1725075529237,0.27716,2525.7,2525.6,4.158]
[1725075529445,1.27716,2525.7,2525.6,0.5830501]
[1725075529856,2.00356,2525.7,2525.6,0.5830501]
[1725075531246,2.00356,2525.7,2525.5,4.89503561]
[1725075531741,0.27717,2525.6,2525.5,4.89503561]
[1725075531949,0.27717,2525.6,2525.5,5.47807651]
[1725075532454,0.27717,2525.6,2525.5,4.89503561]
[1725075532650,0.64087,2525.6,2525.5,5.47808179]
[1725075532845,0.3637,2525.6,2525.5,5.47808179]
[1725075533244,0.3637,2525.6,2525.5,4.89503561]
[1725075533854,0.64087,2525.6,2525.5,4.89503561]
[1725075534052,0.64087,2525.6,2525.5,5.47807854]
[1725075534353,0.64087,2525.6,2525.5,4.89503561]
[1725075535353,9.1364562,2525.6,2525.5,4.89503561]
[1725075539850,12.3442562,2525.6,2525.5,4.89503561]
[1725075541658,9.1364562,2525.6,2525.5,4.89503561]
[1725075542157,8.3850562,2525.6,2525.5,4.89503561]
[1725075542753,5.1772562,2525.6,2525.5,4.89503561]
[1725075543261,8.3850562,2525.6,2525.5,4.89503561]
[1725075543659,8.3850562,2525.6,2525.4,0.00593319]
[1725075543861,1.0,2525.5,2525.4,0.00593319]
[1725075545554,0.75683319,2525.9,2525.4,0.00593319]
[1725075545753,1.0,2525.7,2525.5,0.27718]
[1725075545955,1.0,2525.7,2525.6,1.1511]
[1725075547363,1.27716,2525.7,2525.6,0.3803]
[1725075547562,1.27716,2525.7,2525.4,0.00593319]
[1725075547563,0.27717,2525.6,2525.4,0.00593319]
[1725075547758,1.3797,2525.5,2525.4,0.00593319]
[1725075547962,5.91104973,2525.5,2525.4,0.00593319]
[1725075559577,5.53134973,2525.5,2525.4,0.00593319]
[1725075560172,5.80852973,2525.5,2525.4,0.00593319]
[1725075560767,5.53134973,2525.5,2525.4,0.00593319]
[1725075570779,5.53134973,2525.5,2525.4,0.58914295]
[1725075570976,5.53134973,2525.5,2525.4,0.58914368]
[1725075572576,5.53134973,2525.5,2525.4,0.98032399]
[1725075572780,5.53134973,2525.5,2525.4,0.58914368]
[1725075573281,5.53134973,2525.5,2525.4,2.01412241]
[1725075574371,5.53134973,2525.5,2525.4,2.01407029]
[1725075575585,5.80852973,2525.5,2525.4,2.01407029]
[1725075575788,5.80852973,2525.5,2525.4,0.98028405]
[1725075576283,5.80852973,2525.5,2525.4,2.01407029]
[1725075576488,5.80852973,2525.5,2525.4,0.98028405]
[1725075577083,5.80852973,2525.5,2525.4,2.01407029]
[1725075577670,5.80852973,2525.5,2525.4,1.03971943]
[1725075577873,5.80852973,2525.5,2525.4,0.98055358]
[1725075578279,5.53134973,2525.5,2525.4,2.01433982]
[1725075578975,5.53134973,2525.5,2525.4,3.99488045]
[1725075579377,5.53134973,2525.5,2525.4,2.01433982]
[1725075579581,5.53134973,2525.5,2525.4,2.39863982]
[1725075579981,5.53134973,2525.5,2525.4,4.37922702]
[1725075580181,5.53134973,2525.5,2525.4,4.37924909]
[1725075580985,5.53134973,2525.5,2525.4,3.98797063]
[1725075581189,5.53134973,2525.5,2525.4,4.3792197]
[1725075582377,1.0,2525.5,2525.4,4.3792197]
[1725075582578,1.0,2525.5,2525.4,4.6564097]
[1725075583189,1.0,2525.5,2525.4,3.62262346]
[1725075583686,1.0,2525.5,2525.4,4.66043957]
[1725075584875,1.0,2525.5,2525.4,4.66038794]
[1725075585482,1.0,2525.5,2525.4,3.62257183]
[1725075585793,1.0,2525.5,2525.4,4.66032404]
[1725075586288,0.3597,2525.8,2525.4,15.47376336]
[1725075586495,1.00593319,2525.9,2525.8,0.27715]
[1725075586791,1.00593319,2525.9,2525.8,0.86049193]
[1725075587586,1.00593319,2525.9,2525.8,0.86027034]
[1725075588692,1.00593319,2525.9,2525.8,0.58312034]
[1725075589297,1.00593319,2525.9,2525.8,0.94942034]
[1725075590892,1.00593319,2525.9,2525.8,0.3663]
[1725075591193,1.00593319,2525.9,2525.8,1.53264933]
[1725075594295,1.00593319,2525.9,2525.8,0.94947752]
[1725075594498,1.00593319,2525.9,2525.8,1.53263994]
[1725075596295,1.28307319,2525.9,2525.8,1.53263994]
[1725075596494,1.28307319,2525.9,2525.8,1.16633994]
[1725075596895,1.28307319,2525.9,2525.8,0.58316242]
[1725075599601,0.00593319,2525.9,2525.8,0.86031242]
[1725075599804,0.00593319,2525.9,2525.8,0.96606242]
[1725075603405,0.00593319,2525.9,2525.8,0.58316242]
[1725075604004,0.28307319,2525.9,2525.8,0.58316242]
[1725075604216,8.37321209,2525.9,2525.8,0.58316242]
[1725075604716,4.13687209,2525.9,2525.8,0.58316242]
[1725075604903,5.13687209,2525.9,2525.8,0.58316242]
[1725075605307,5.41401209,2525.9,2525.8,0.58316242]
[1725075606620,5.41401209,2525.9,2525.7,0.7635]
[1725075606925,5.41401209,2525.9,2525.8,0.58306143]
[1725075612824,0.27715,2525.8,2525.6,0.3567]
[1725075613028,0.65555,2525.8,2525.7,0.58291075]
[1725075613227,4.23945,2525.8,2525.7,0.58291075]
[1725075613821,4.23945,2525.8,2525.6,0.3567]
[1725075614025,4.23945,2525.8,2525.7,0.58294713]
[1725075614331,2.03165,2525.8,2525.7,0.58294713]
[1725075615723,5.23945,2525.8,2525.7,0.58294713]
[1725075616129,5.23945,2525.8,2525.6,0.3567]
[1725075616130,9.67345274,2525.8,2525.6,0.3567]
[1725075616319,8.91895274,2525.8,2525.7,0.58297271]
[1725075616527,4.84635,2525.8,2525.7,0.58297271]
[1725075616732,1.63855,2525.8,2525.7,0.58297271]
[1725075619032,1.3614,2525.8,2525.7,0.58297271]
[1725075619537,1.63855,2525.8,2525.7,0.58297271]
[1725075620319,1.0,2525.8,2525.7,0.58297271]
[1725075620640,1.0,2525.8,2525.7,0.58296651]
[1725075623336,1.0,2525.8,2525.7,0.86012651]
[1725075623536,1.0,2525.8,2525.7,0.86005737]
[1725075625729,1.0,2525.8,2525.7,0.58289737]
[1725075626740,1.0,2525.8,2525.6,1.67144756]
[1725075627238,1.0,2525.8,2525.7,0.58292157]
[1725075629333,1.0,2525.8,2525.7,1.2510443]
[1725075629736,1.0,2525.8,2525.7,2.01147186]
[1725075630037,1.00593319,2525.9,2525.7,2.28858388]
[1725075630243,0.2771,2526.3,2526.0,0.27712]
[1725075630435,1.0,2526.3,2526.1,1.22038359]
[1725075630636,1.0,2526.3,2526.2,0.58287359]
[1725075630841,1.0,2526.3,2526.2,0.96807359]
[1725075631037,1.0,2526.3,2526.2,4.92647359]
[1725075631237,1.0,2526.3,2526.2,0.96807359]
[1725075631545,1.27709,2526.3,2526.2,0.96807359]
[1725075632644,1.27709,2526.3,2526.2,0.58287359]
[1725075633440,5.58845558,2526.3,2526.2,0.58287359]
[1725075633948,5.58845558,2526.3,2526.0,0.3543]
[1725075634145,1.0,2526.1,2526.0,0.3543]
[1725075634449,1.0,2526.1,2526.0,0.93690623]
[1725075635545,1.0,2526.1,2526.0,0.58260623]
[1725075636456,1.27712,2526.1,2526.0,0.58260623]
[1725075636653,1.27712,2526.1,2526.0,0.58265804]
[1725075639753,1.27712,2526.1,2526.0,0.5825936]
[1725075641547,0.27714,2525.9,2525.6,1.03634103]
[1725075641856,0.27714,2525.9,2525.5,1.69172103]
[1725075641857,1.0,2525.7,2525.5,1.69172103]
[1725075642057,1.0,2525.7,2525.6,0.58269104]
[1725075643267,1.27716,2525.7,2525.6,0.58280359]
[1725075643556,1.64516,2525.7,2525.6,0.58280359]
[1725075643945,5.83127296,2525.7,2525.6,0.58280359]
[1725075644759,5.55411296,2525.7,2525.6,0.58280359]
[1725075646255,5.83127296,2525.7,2525.5,0.3782]
[1725075646457,0.7404,2525.6,2525.5,0.3782]
[1725075646765,0.7404,2525.6,2525.5,0.96120572]
[1725075648562,1.01757,2525.6,2525.5,0.58300572]
[1725075648859,9.11549608,2525.6,2525.5,0.58300572]
[1725075649044,0.27718,2525.5,2525.4,0.00593319]
[1725075649247,1.27718,2525.5,2525.4,0.58905732]
[1725075649451,5.73158273,2525.5,2525.4,0.58905732]
[1725075649949,5.45440273,2525.5,2525.4,0.58905732]
[1725075651361,5.45440273,2525.5,2525.4,0.00593319]
[1725075651759,5.45440273,2525.5,2525.4,0.58905835]
[1725075651963,5.45440273,2525.5,2525.4,0.00593319]
[1725075652761,1.0,2525.5,2525.4,0.00593319]
[1725075652958,0.7404,2525.6,2525.4,0.00593319]
[1725075652959,1.0,2525.6,2525.4,0.00593319]
[1725075653467,1.27717,2525.6,2525.4,0.00593319]
[1725075654558,1.27717,2525.6,2525.5,0.58304148]
[1725075654950,1.27717,2525.6,2525.4,0.00593319]
[1725075655557,0.27718,2525.5,2525.4,0.00593319]
[1725075655760,0.3644,2525.5,2525.4,0.58900051]
[1725075656157,0.3644,2525.5,2525.4,0.00593319]
[1725075656361,0.3644,2525.5,2525.4,0.58900584]
[1725075659470,0.3644,2525.5,2525.4,0.58901536]
[1725075661178,3.2078,2525.9,2525.4,10.54901536]
[1725075661373,1.7509,2526.1,2525.8,0.27714]
[1725075661569,3.2078,2526.2,2526.0,0.27712]
[1725075661868,3.2078,2526.2,2526.1,0.9684438]
[1725075662069,1.27708,2526.4,2526.1,1.3229438]
[1725075662269,1.0,2526.4,2526.1,0.7403]
[1725075662466,1.0,2526.2,2526.1,0.7403]
[1725075662767,1.0,2526.2,2526.1,1.32293662]
[1725075662970,1.0,2526.2,2526.1,5.28133662]
[1725075664270,1.0,2526.2,2526.1,4.6987]
[1725075665371,0.27708,2526.4,2526.1,5.55838041]
[1725075665372,1.0,2526.4,2526.1,5.55838041]
[1725075665566,1.0,2526.4,2526.1,0.7403]
[1725075665767,3.5849,2526.6,2525.9,0.3847]
[1725075665768,1.0,2526.2,2525.9,0.3847]
[1725075665965,1.0,2526.2,2526.0,0.58256668]
[1725075666171,1.0,2526.2,2525.9,0.3847]
[1725075666466,1.3787,2526.2,2526.0,0.58258827]
[1725075666665,1.3787,2526.2,2525.9,0.3847]
[1725075666860,0.7673,2526.2,2526.0,0.58258878]
[1725075667074,0.7673,2526.2,2525.9,0.3847]
[1725075667075,1.0,2526.0,2525.9,0.3847]
[1725075667373,1.0,2526.0,2525.9,0.96726527]
[1725075667570,1.0,2526.0,2525.9,4.92646527]
[1725075668072,1.0,2526.0,2525.9,0.96726527]
[1725075669470,1.0,2526.0,2525.9,0.3847]
[1725075669975,1.27713,2526.0,2525.9,0.3847]
[1725075670671,0.27714,2525.9,2525.5,5.55674103]
[1725075670972,1.0,2525.7,2525.6,0.94088767]
[1725075672968,1.0,2525.7,2525.6,0.3582]
[1725075673270,1.27716,2525.7,2525.6,0.3582]
[1725075676784,1.63646,2525.7,2525.6,0.3582]
[1725075677282,1.3593,2525.7,2525.6,0.3582]
[1725075679783,9.5655566,2525.7,2525.4,3.49092319]
[1725075679983,1.0,2525.5,2525.4,3.57133319]
[1725075680187,1.0,2525.5,2525.4,4.15413932]
[1725075680585,1.0,2525.5,2525.4,0.94633932]
[1725075680882,1.0,2525.5,2525.4,0.58873932]
[1725075681383,1.0,2525.5,2525.4,0.58878907]
[1725075681679,1.0,2525.5,2525.4,0.00593319]
[1725075682280,1.0,2525.5,2525.4,0.58880572]
[1725075682479,1.27718,2525.5,2525.4,0.58880572]
[1725075682887,1.0,2525.5,2525.4,0.58880572]
[1725075683087,1.0,2525.5,2525.4,0.00593319]
[1725075683475,1.27718,2525.5,2525.4,0.00593319]
[1725075686781,1.0,2525.5,2525.4,0.00593319]
[1725075687480,1.0,2525.5,2525.4,0.5888073]
[1725075688880,0.63647,2525.7,2525.4,0.8659973]
[1725075689079,1.63647,2525.7,2525.4,0.8659973]
[1725075689280,1.63647,2525.7,2525.5,0.3866]
[1725075694891,1.3593,2525.7,2525.6,0.27717]
[1725075695483,1.0,2525.7,2525.6,0.27717]
[1725075695689,1.0,2525.9,2525.7,0.27716]
[1725075696588,1.0,2525.9,2525.6,0.27716]
[1725075698794,1.0,2525.7,2525.6,0.27716]
[1725075704009,1.0,2525.7,2525.5,1.05257]
[1725075704292,1.0,2525.7,2525.6,0.85988582]
[1725075705601,1.0,2525.7,2525.6,0.58271582]
[1725075705892,1.3766,2525.7,2525.5,0.66377]
[1725075706209,1.3766,2525.7,2525.5,0.3866]
[1725075706210,0.374,2525.6,2525.5,0.3866]
[1725075706399,0.374,2525.6,2525.5,0.96934485]
[1725075706790,0.374,2525.6,2525.5,0.58274485]
[1725075706985,3.85897,2525.6,2525.5,0.58274485]
[1725075707290,3.85897,2525.6,2525.4,0.00593319]
[1725075707291,0.27718,2525.5,2525.4,0.00593319]
[1725075707599,5.41877096,2525.5,2525.4,0.00593319]
[1725075707794,9.37877096,2525.5,2525.4,0.00593319]
[1725075708197,5.41877096,2525.5,2525.4,0.00593319]
[1725075713089,9.37877096,2525.5,2525.4,0.00593319]
[1725075718501,8.37877096,2525.5,2525.4,0.00593319]
[1725075718718,5.41877096,2525.5,2525.4,0.00593319]
[1725075719004,5.41877096,2525.5,2525.4,0.58887205]
[1725075720799,5.41877096,2525.5,2525.4,0.58883862]
[1725075720995,5.41877096,2525.5,2525.4,0.00593319]
[1725075721396,5.41877096,2525.5,2525.4,0.58888016]
[1725075723513,5.41877096,2525.5,2525.4,0.00593319]
[1725075723703,5.41877096,2525.5,2525.4,0.58885776]
[1725075726708,5.41877096,2525.5,2525.4,0.00593319]
[1725075731305,10.07173096,2525.5,2525.4,0.00593319]
[1725075735609,10.35537701,2525.5,2525.4,0.00593319]
[1725075736405,10.07173096,2525.5,2525.4,0.00593319]
[1725075739111,13.27953096,2525.5,2525.4,0.00593319]
[1725075744717,10.07173096,2525.5,2525.4,0.00593319]
[1725075744914,13.27953096,2525.5,2525.4,0.00593319]
[1725075745513,10.07173096,2525.5,2525.4,0.00593319]
[1725075745709,13.27953096,2525.5,2525.4,0.00593319]
[1725075746824,10.07173096,2525.5,2525.4,0.00593319]
[1725075747116,13.27953096,2525.5,2525.4,0.00593319]
[1725075747507,10.07173096,2525.5,2525.4,0.00593319]
[1725075748116,13.27953096,2525.5,2525.4,0.00593319]
[1725075749822,10.07173096,2525.5,2525.4,0.00593319]
[1725075750024,13.27953096,2525.5,2525.4,0.00593319]
[1725075752416,7.34939096,2525.5,2525.4,0.00593319]
[1725075752617,0.27712,2526.1,2525.4,4.54918161]
[1725075752921,4.13248045,2525.8,2525.6,0.27716]
[1725075753121,4.13248045,2525.8,2525.7,0.93864842]